bitfinex/quotes_ETHUSD_20220226
["timestamp","ask_amount","ask_price","bid_price","bid_amount"]
[1645896517842,1.0,2791.4,2791.3,1.31013577]
[1645896518051,13.17641261,2791.4,2791.3,1.31013577]
[1645896518246,12.0,2791.3,2791.2,3.577e-05]
[1645896518448,22.92361261,2791.3,2791.2,3.577e-05]
[1645896518642,8.42361261,2791.3,2791.2,3.577e-05]
[1645896518845,9.42361261,2791.3,2791.2,3.577e-05]
[1645896519143,3.163832,2791.6,2790.6,0.25]
[1645896519144,0.3582,2791.6,2791.0,1.0395498]
[1645896519455,2.0,2792.1,2792.0,1.33651397]
[1645896519649,1.35360795,2793.0,2791.5,7.36]
[1645896519650,0.9048487,2793.0,2791.5,7.36]
[1645896519857,1.51360406,2792.9,2791.9,0.01234956]
[1645896520051,1.51360406,2792.9,2792.0,5.18008108]
[1645896520247,1.51360406,2792.9,2792.0,1.53828108]
[1645896520444,1.51360406,2792.9,2792.0,2.94978108]
[1645896520651,1.51360406,2792.9,2792.5,1.35999204]
[1645896520848,5.5,2793.9,2792.7,0.3582]
[1645896520849,0.00505099,2793.0,2792.7,0.3582]
[1645896521792,2.0,2793.9,2792.7,11.2682]
[1645896521994,0.00505129,2793.0,2792.6,0.00505207]
[1645896522395,1.51329057,2792.9,2792.6,0.00505207]
[1645896522794,12.3958961,2792.8,2791.9,0.01842823]
[1645896522995,0.89589,2792.6,2791.7,0.00371832]
[1645896523202,2.40922057,2792.5,2791.7,0.00371832]
[1645896523395,2.40922057,2792.5,2791.9,0.02021301]
[1645896523396,2.40926057,2792.4,2791.9,0.02021301]
[1645896523596,0.89597,2792.4,2791.9,0.02021301]
[1645896523794,1.51360901,2792.3,2791.9,0.02021301]
[1645896523995,1.791898,2792.5,2791.9,0.02021301]
[1645896524199,1.5135909,2792.4,2791.4,0.00371832]
[1645896524397,5.0135909,2792.4,2792.0,0.00503833]
[1645896524595,0.89593,2792.5,2792.0,0.00503833]
[1645896524897,1.51358404,2792.4,2792.0,0.00503833]
[1645896525345,1.51358404,2792.4,2791.4,0.00371832]
[1645896525545,3.5,2792.3,2792.1,0.00503823]
[1645896525759,1.51371307,2792.2,2792.1,0.00503823]
[1645896525944,5.01371307,2792.2,2792.1,0.00503823]
[1645896526548,5.01371307,2792.2,2791.4,0.00371832]
[1645896526747,3.5,2792.2,2791.4,0.00371832]
[1645896526946,0.89612,2792.0,2791.5,0.02015697]
[1645896527949,0.89612,2792.1,2791.2,0.00371832]
[1645896528148,0.89612,2792.1,2791.6,0.0050387]
[1645896528551,1.93518,2792.3,2791.6,0.0050387]
[1645896528750,1.0,2792.5,2791.6,0.0050387]
[1645896528751,0.1431,2792.2,2791.6,0.0050387]
[1645896528988,0.1431,2792.2,2791.5,0.00371832]
[1645896529188,0.1431,2792.4,2791.4,7.7182]
[1645896529389,0.1431,2792.6,2791.8,0.00503849]
[1645896530198,0.1431,2792.6,2791.5,0.00371832]
[1645896530394,1.51364642,2792.5,2792.1,0.00503823]
[1645896530590,3.6431,2792.4,2792.1,0.00503823]
[1645896530995,0.1431,2792.4,2792.1,0.00503823]
[1645896531191,3.6431,2792.4,2792.1,0.00503823]
[1645896531395,0.89612,2792.1,2791.3,0.00371832]
[1645896531602,0.89612,2792.1,2791.5,0.02015728]
[1645896531603,1.79224,2792.1,2791.5,0.02015728]
[1645896532199,0.1431,2792.0,2791.5,0.02015728]
[1645896532599,0.1431,2792.0,2791.1,0.00104904]
[1645896532844,0.1431,2792.0,2791.6,0.0050387]
[1645896532845,4.53923,2792.0,2791.6,0.0050387]
[1645896533043,1.03923,2792.0,2791.6,0.0050387]
[1645896533243,5.53923,2792.0,2791.6,0.0050387]
[1645896533441,4.53923,2792.0,2791.6,0.0050387]
[1645896533645,5.53923,2792.0,2791.6,0.0050387]
[1645896533841,5.53923,2792.0,2791.1,0.00104904]
[1645896533842,0.89624,2791.7,2791.1,0.00104904]
[1645896534043,1.79248,2791.7,2791.1,0.00104904]
[1645896534244,3.5,2791.6,2791.2,0.0201576]
[1645896534842,4.39629,2791.6,2791.2,0.0201576]
[1645896535044,0.89638,2791.4,2790.7,0.00371832]
[1645896535344,0.89638,2791.4,2790.5,0.00371832]
[1645896535546,4.39638,2791.4,2790.5,0.00371832]
[1645896535742,4.39638,2791.4,2790.3,0.00371832]
[1645896536043,0.89638,2791.4,2790.3,0.00371832]
[1645896536247,0.89638,2791.4,2790.1,0.36191832]
[1645896536493,0.89638,2791.4,2790.2,0.00371832]
[1645896536898,4.39638,2791.4,2790.2,0.00371832]
[1645896537298,0.89637,2791.3,2790.2,0.00371832]
[1645896537802,0.89642,2791.1,2790.2,0.00371832]
[1645896538002,3.6431,2791.0,2790.0,0.00371832]
[1645896538815,0.8965714,2790.8,2790.0,0.00371832]
[1645896539103,3.6431,2790.7,2790.4,0.00489172]
[1645896539302,0.1431,2790.7,2790.4,0.00489172]
[1645896539502,3.6431,2790.7,2790.4,0.00489172]
[1645896539701,0.1431,2790.7,2789.9,0.01956981]
[1645896539900,1.3582,2790.7,2789.4,0.00371832]
[1645896540100,7.5,2790.5,2789.3,0.2281796]
[1645896540346,4.5397,2790.6,2789.3,0.2281796]
[1645896540545,1.0397,2790.6,2789.3,0.2281796]
[1645896540748,1.93628,2790.6,2789.3,0.2281796]
[1645896540947,0.3582,2790.5,2789.3,0.2281796]
[1645896541549,3.8582,2790.5,2789.3,0.2281796]
[1645896541754,0.8967,2790.3,2789.3,0.2281796]
[1645896541956,3.6431,2790.2,2789.1,7.36]
[1645896543051,0.8968424,2789.9,2789.1,7.36]
[1645896543653,0.8968424,2789.9,2789.4,0.00503529]
[1645896543856,1.7937024,2789.9,2789.4,0.00503529]
[1645896544322,0.89683,2789.8,2789.4,0.00503529]
[1645896544521,0.89683,2789.8,2789.1,7.36]
[1645896544722,0.89683,2789.8,2788.8,0.02409277]
[1645896544921,0.89683,2789.8,2789.5,0.00503514]
[1645896545724,0.89683,2789.8,2788.8,0.02409277]
[1645896546024,0.89683,2789.8,2789.5,0.00503514]
[1645896546025,4.39683,2789.8,2789.5,0.00503514]
[1645896546225,0.8969,2789.7,2789.5,0.00503514]
[1645896546431,0.89694,2789.6,2789.5,0.00503514]
[1645896547031,0.01051563,2789.4,2788.8,0.02409277]
[1645896547234,0.01051563,2789.4,2789.0,0.01887569]
[1645896547740,0.01051563,2789.4,2789.1,1.329828]
[1645896548336,0.89699,2789.3,2789.1,1.33452708]
[1645896548536,0.90753683,2789.4,2789.1,1.33452708]
[1645896548537,0.01051563,2789.4,2789.3,1.36145559]
[1645896548944,0.01051563,2789.4,2789.3,1.66145559]
[1645896549138,0.01051563,2789.4,2789.3,1.36145559]
[1645896549345,0.01051563,2789.4,2789.1,1.63452708]
[1645896549538,0.01051563,2789.4,2789.2,3.5]
[1645896549737,0.01051563,2789.4,2789.1,1.629828]
[1645896549940,0.01051563,2789.4,2789.2,3.50469898]
[1645896550341,0.01051563,2789.4,2789.3,1.35949952]
[1645896552294,0.01051563,2789.4,2789.2,0.00470996]
[1645896552994,0.01051563,2789.4,2789.1,1.629828]
[1645896553195,0.01051563,2789.4,2789.2,0.00471001]
[1645896553395,0.01051563,2789.4,2789.2,1.20833273]
[1645896553598,0.01051563,2789.4,2789.2,0.00471001]
[1645896554195,0.01051563,2789.4,2789.1,1.329828]
[1645896554597,0.01051563,2789.4,2789.2,0.00462841]
[1645896555446,0.01051563,2789.4,2789.1,1.329828]
[1645896555646,0.01051563,2789.4,2789.2,0.00438551]
[1645896556653,0.01051563,2789.4,2789.1,1.329828]
[1645896556850,0.01051563,2789.4,2789.2,0.00438551]
[1645896557848,0.01051563,2789.4,2789.1,1.329828]
[1645896558252,0.01051563,2789.4,2789.2,0.00440967]
[1645896558651,0.90754833,2789.4,2789.2,0.00440967]
[1645896559093,0.89704,2789.3,2789.1,1.329828]
[1645896559303,0.89704,2789.3,2789.2,0.00443865]
[1645896559693,4.39704,2789.3,2789.2,0.00443865]
[1645896559896,4.69704,2789.3,2789.2,0.00443865]
[1645896560103,7.35532162,2789.3,2789.2,0.00443865]
[1645896560293,1.46255815,2789.2,2789.1,1.329828]
[1645896560492,2.71231893,2789.2,2789.1,1.33426669]
[1645896560694,3.81891187,2789.2,2789.1,1.33426669]
[1645896561397,3.81891187,2789.2,2789.1,1.329828]
[1645896561805,2.19716,2789.2,2789.1,1.329828]
[1645896562000,3.71229357,2789.2,2789.1,1.32891271]
[1645896562200,7.21229357,2789.2,2789.1,1.32891271]
[1645896562399,5.69716,2789.2,2789.1,1.32891271]
[1645896562851,7.31891187,2789.2,2789.1,1.32891271]
[1645896563052,2.19716,2789.2,2789.1,1.32891271]
[1645896563252,1.19716,2789.2,2789.1,1.32891271]
[1645896563450,4.69716,2789.2,2789.1,1.32891271]
[1645896563850,2.19716,2789.2,2789.1,1.32891271]
[1645896564249,4.69716,2789.2,2789.1,1.32891271]
[1645896564651,2.19716,2789.2,2789.1,1.32891271]
[1645896564852,4.69716,2789.2,2789.1,1.32891271]
[1645896565253,5.69716,2789.2,2789.1,1.32891271]
[1645896565653,3.00183833,2789.4,2789.1,1.32891271]
[1645896565654,0.31051563,2789.4,2789.1,1.32891271]
[1645896565853,1.31051563,2789.4,2789.1,1.32891271]
[1645896566056,1.01051563,2789.4,2789.1,1.32891271]
[1645896566254,0.01051563,2789.4,2789.1,1.32891271]
[1645896566495,0.01051563,2789.4,2789.1,1.33334513]
[1645896567109,0.28263114,2788.9,2788.8,0.00370583]
[1645896567301,0.28263114,2788.9,2788.7,0.01773235]
[1645896567501,0.28263114,2788.9,2788.5,0.1434]
[1645896567701,0.28263114,2788.9,2788.2,0.1434]
[1645896569807,0.28263114,2788.9,2788.2,1.53159988]
[1645896570264,0.28263114,2788.9,2788.7,1.23125358]
[1645896570451,0.01051563,2789.4,2788.8,9.3582]
[1645896570655,0.01051563,2789.4,2788.8,9.8742]
[1645896570853,0.01051563,2789.4,2788.8,10.1742]
[1645896571052,0.01051563,2789.4,2788.9,0.1434]
[1645896571452,0.01051563,2789.4,2789.0,0.00473767]
[1645896571654,0.01051563,2789.4,2789.1,1.35805273]
[1645896572055,0.01051563,2789.4,2789.2,0.3582]
[1645896572656,0.01051563,2789.4,2789.1,1.21465273]
[1645896573057,0.01051563,2789.4,2789.2,0.3582]
[1645896575305,0.01051563,2789.4,2789.1,1.21465273]
[1645896575903,0.01051563,2789.4,2788.8,0.00370583]
[1645896576104,1.51503573,2789.3,2789.0,0.00471892]
[1645896576503,0.89706,2789.2,2789.0,0.00471892]
[1645896576708,1.51503573,2789.1,2789.0,0.00471892]
[1645896577109,1.51503573,2789.1,2788.5,1.12523855]
[1645896577306,1.51503573,2789.1,2788.9,0.00471887]
[1645896578343,1.51503573,2789.1,2788.6,0.00370583]
[1645896578544,1.51503573,2789.1,2788.9,0.00471892]
[1645896579144,0.01051563,2789.4,2788.9,0.00471892]
[1645896579344,1.51509355,2789.3,2788.9,0.00471892]
[1645896579545,1.51509355,2789.3,2788.3,0.00370583]
[1645896579744,1.51509355,2789.3,2789.0,0.00472915]
[1645896580647,1.51509355,2789.3,2788.6,0.36190583]
[1645896580845,1.51509355,2789.3,2789.0,0.00472915]
[1645896581994,1.51509355,2789.3,2788.9,1.39044004]
[1645896582194,1.51509355,2789.3,2789.0,0.00472915]
[1645896582998,1.51509355,2789.3,2788.5,0.00370583]
[1645896583197,1.51509355,2789.3,2788.3,0.14710583]
[1645896583397,1.51509355,2789.3,2789.0,0.00472824]
[1645896584200,1.51509355,2789.3,2788.3,0.14710583]
[1645896584401,1.51509355,2789.3,2788.8,1.08378349]
[1645896584599,1.51509355,2789.3,2789.0,0.00472824]
[1645896585444,1.51509355,2789.3,2788.3,0.00370583]
[1645896585839,1.51509355,2789.3,2789.0,0.00472824]
[1645896586642,1.51509355,2789.3,2788.8,0.00370583]
[1645896586843,1.51509355,2789.3,2789.0,0.00472832]
[1645896587143,0.00544971,2788.9,2788.8,0.00370583]
[1645896587345,0.00544971,2788.9,2788.7,1.44261133]
[1645896587747,0.00544971,2788.9,2788.6,0.01891579]
[1645896587952,0.00544971,2788.9,2788.2,0.00370583]
[1645896588745,1.51512325,2788.8,2788.2,0.00370583]
[1645896588992,1.51512325,2788.8,2788.2,1.4391124]
[1645896589197,1.51512325,2788.8,2788.2,1.7391124]
[1645896590504,1.51512325,2788.8,2788.4,0.00501869]
[1645896591497,1.51512325,2788.8,2788.2,1.74281823]
[1645896591704,1.51512325,2788.8,2788.2,2.10101823]
[1645896591902,1.51512325,2788.8,2788.5,0.00470397]
[1645896592103,0.00544971,2788.9,2788.5,0.00470397]
[1645896592748,0.00544971,2788.9,2788.3,0.00370583]
[1645896592939,0.00544971,2788.9,2788.6,0.00470386]
[1645896593339,0.00544971,2788.9,2788.7,1.09219951]
[1645896593539,0.00544971,2788.9,2788.6,0.00470386]
[1645896593940,1.5150605,2788.8,2788.3,0.00370583]
[1645896594142,0.00544971,2788.9,2788.6,0.00470381]
[1645896594342,1.51504517,2788.8,2788.6,0.00470381]
[1645896595240,1.51504517,2788.8,2788.3,0.00370583]
[1645896595441,1.51504517,2788.8,2788.6,0.00470386]
[1645896596241,1.27211833,2788.8,2788.3,0.00370583]
[1645896596489,0.00544971,2788.9,2788.6,0.00473057]
[1645896597594,0.00544971,2788.9,2788.2,0.00370583]
[1645896597795,0.00544971,2788.9,2788.6,0.00473052]
[1645896597993,0.00544971,2788.9,2788.7,1.41529522]
[1645896598892,0.00544971,2788.9,2788.7,1.42002569]
[1645896599293,0.00544971,2788.9,2788.7,0.00473047]
[1645896599895,0.00544971,2788.9,2788.2,0.00370583]
[1645896600095,0.00544971,2788.9,2788.7,0.0047283]
[1645896600336,0.00544971,2788.9,2788.7,1.08500099]
[1645896601136,0.00544971,2788.9,2788.2,0.00370583]
[1645896601336,0.00544971,2788.9,2788.7,0.0047283]
[1645896602346,0.00544971,2788.9,2788.2,0.00370583]
[1645896602644,0.00544971,2788.9,2788.7,0.0047283]
[1645896603446,0.00544971,2788.9,2788.6,1.3973153]
[1645896603846,0.00544971,2788.9,2788.7,0.0047285]
[1645896604685,0.00544971,2788.9,2788.2,0.00370583]
[1645896604886,0.00544971,2788.9,2788.7,0.0047285]
[1645896605687,0.00544971,2788.9,2788.8,1.04154253]
[1645896609068,0.00544971,2788.9,2788.8,3.6646543]
[1645896609470,0.00544971,2788.9,2788.8,6.28776607]
[1645896611173,0.00544971,2788.9,2788.8,6.58776607]
[1645896611372,0.00544971,2788.9,2788.8,6.83386607]
[1645896612398,0.00544971,2788.9,2788.8,6.58776607]
[1645896612598,0.00544971,2788.9,2788.8,25.46536607]
[1645896612804,0.00544971,2788.9,2788.8,26.19516057]
[1645896612996,4.971e-05,2788.9,2788.8,28.0958673]
[1645896613395,0.01051563,2789.4,2789.0,11.2682]
[1645896613602,0.01051563,2789.4,2789.3,7.505616]
[1645896613796,0.01051563,2789.4,2789.3,2.805616]
[1645896613994,0.01051563,2789.4,2789.3,3.805616]
[1645896614397,0.01051563,2789.4,2789.3,22.33872777]
[1645896614601,0.01051563,2789.4,2789.3,24.3441628]
[1645896614797,0.01051563,2789.4,2789.3,26.96727457]
[1645896614996,0.01051563,2789.4,2789.3,16.05727457]
[1645896615258,0.01051563,2789.4,2789.3,15.56783954]
[1645896615655,0.01051563,2789.4,2789.3,26.47783954]
[1645896615858,0.01051563,2789.4,2789.3,27.58657457]
[1645896616057,0.01051563,2789.4,2789.3,27.88657457]
[1645896616456,0.01051563,2789.4,2789.3,35.05667457]
[1645896616859,0.01051563,2789.4,2789.3,30.41421457]
[1645896617061,0.01051563,2789.4,2789.3,17.98853457]
[1645896617263,0.01051563,2789.4,2789.3,17.19909954]
[1645896617461,0.01051563,2789.4,2789.3,16.84089954]
[1645896618461,0.01051563,2789.4,2789.3,16.84155954]
[1645896618867,0.01051563,2789.4,2789.3,15.96735954]
[1645896619087,0.01051563,2789.4,2789.3,14.96735954]
[1645896621795,0.01051563,2789.4,2789.3,15.49237432]
[1645896623443,0.01051563,2789.4,2789.3,15.85057432]
[1645896623642,0.01051563,2789.4,2789.3,16.85057432]
[1645896628801,0.01051563,2789.4,2789.3,17.32611747]
[1645896629599,0.01051563,2789.4,2789.3,28.23611747]
[1645896631263,0.01051563,2789.4,2789.3,34.10965747]
[1645896632867,0.01051563,2789.4,2789.3,29.10965747]
[1645896633264,0.01051563,2789.4,2789.3,28.75145747]
[1645896633668,0.01051563,2789.4,2789.3,29.10965747]
[1645896633866,0.01051563,2789.4,2789.3,27.80965747]
[1645896634100,0.01051563,2789.4,2789.3,16.18391747]
[1645896634297,0.01051563,2789.4,2789.3,15.70837432]
[1645896635196,0.01051563,2789.4,2789.3,27.91837432]
[1645896635597,0.01051563,2789.4,2789.3,17.00837432]
[1645896637106,0.01051563,2789.4,2789.3,27.91837432]
[1645896637939,0.01051563,2789.4,2789.3,32.91837432]
[1645896638140,0.01051563,2789.4,2789.3,34.17292432]
[1645896638344,0.01051563,2789.4,2789.3,34.64702642]
[1645896638541,0.01051563,2789.4,2789.3,23.37882642]
[1645896638741,0.01051563,2789.4,2789.3,18.37882642]
[1645896639041,0.01051563,2789.4,2789.3,17.90472432]
[1645896639440,0.01051563,2789.4,2789.3,16.60472432]
[1645896639841,0.01051563,2789.4,2789.3,27.51472432]
[1645896640441,0.01051563,2789.4,2789.3,16.60472432]
[1645896640649,0.01051563,2789.4,2789.3,16.90472432]
[1645896640849,0.01051563,2789.4,2789.3,17.90472432]
[1645896642301,0.01051563,2789.4,2789.3,28.81472432]
[1645896642498,0.01051563,2789.4,2789.3,29.64715403]
[1645896642899,0.01051563,2789.4,2789.3,29.28895403]
[1645896643699,0.01051563,2789.4,2789.3,17.76295403]
[1645896643898,0.01051563,2789.4,2789.3,17.28872432]
[1645896646343,0.01051563,2789.4,2789.3,28.19872432]
[1645896646549,0.01051563,2789.4,2789.3,33.6731467]
[1645896646948,0.01051563,2789.4,2789.3,34.5466867]
[1645896648549,0.01051563,2789.4,2789.3,29.5466867]
[1645896649002,0.01051563,2789.4,2789.3,28.6503367]
[1645896649802,0.01051563,2789.4,2789.3,17.7403367]
[1645896650002,0.01051563,2789.4,2789.3,17.26591432]
[1645896650807,0.01051563,2789.4,2789.3,28.17591432]
[1645896651010,0.01051563,2789.4,2789.3,28.6503367]
[1645896651305,0.01051563,2789.4,2789.3,29.5466667]
[1645896652410,0.01051563,2789.4,2789.3,18.6366667]
[1645896652858,0.01051563,2789.4,2789.3,16.01532192]
[1645896653060,0.01051563,2789.4,2789.3,13.41632354]
[1645896653655,0.01051563,2789.4,2789.3,12.41632354]
[1645896654054,1.52529504,2789.4,2789.3,12.41632354]
[1645896658713,1.52529504,2789.4,2789.3,13.6027533]
[1645896662555,1.52529504,2789.4,2789.3,12.41632354]
[1645896663656,1.52529504,2789.4,2789.3,13.67542195]
[1645896663857,1.52529504,2789.4,2789.3,14.97542195]
[1645896666112,1.52529504,2789.4,2789.3,15.44984433]
[1645896666307,1.52529504,2789.4,2789.3,14.97542195]
[1645896666708,0.00903339,2789.4,2789.3,15.44984433]
[1645896667007,0.00903339,2789.4,2789.3,14.97542195]
[1645896667408,1.52368028,2789.4,2789.3,14.97542195]
[1645896667609,1.52368028,2789.4,2789.3,13.67542195]
[1645896668847,1.52368028,2789.4,2789.3,13.62542195]
[1645896669047,1.51464689,2789.4,2789.3,11.05231018]
[1645896669448,1.51464689,2789.6,2789.3,13.62542195]
[1645896669750,1.51464689,2789.5,2789.3,13.62542195]
[1645896669953,1.51464689,2789.4,2789.3,11.00231018]
[1645896670648,1.51464689,2789.6,2789.3,11.00231018]
[1645896670848,1.51464689,2789.5,2789.3,11.00231018]
[1645896671050,1.51464689,2789.4,2789.3,11.00231018]
[1645896671701,1.51464689,2789.6,2789.3,11.00231018]
[1645896671901,1.51464689,2789.5,2789.3,11.00231018]
[1645896672103,1.51464689,2789.4,2789.3,11.00231018]
[1645896672703,1.51464689,2789.6,2789.3,11.00231018]
[1645896673103,1.51464689,2789.6,2789.3,12.30231018]
[1645896673602,1.51464689,2789.5,2789.3,12.30231018]
[1645896673806,1.51464689,2789.4,2789.3,12.30231018]
[1645896674001,1.51464689,2789.6,2789.3,12.30231018]
[1645896674205,1.51464689,2789.5,2789.3,12.30231018]
[1645896674406,1.51464689,2789.4,2789.3,9.72919841]
[1645896674805,0.67070639,2790.0,2789.3,9.72919841]
[1645896674806,0.00443731,2789.7,2789.3,9.72919841]
[1645896675002,1.51464689,2789.6,2789.3,9.72919841]
[1645896675942,1.51464689,2789.5,2789.3,9.72919841]
[1645896676139,0.00443527,2789.7,2789.3,9.72919841]
[1645896676140,1.51464689,2789.4,2789.3,9.72919841]
[1645896676547,1.51464689,2789.6,2789.3,9.72919841]
[1645896676745,1.51464689,2789.5,2789.3,9.72919841]
[1645896676947,1.51464689,2789.4,2789.3,9.72919841]
[1645896677347,1.51464689,2789.6,2789.3,9.72919841]
[1645896677549,1.51464689,2789.5,2789.3,9.72919841]
[1645896677750,1.51464689,2789.4,2789.3,9.72919841]
[1645896678150,1.51464689,2789.6,2789.3,9.72919841]
[1645896678349,0.67070639,2790.0,2789.3,9.72919841]
[1645896678350,1.51464689,2789.5,2789.3,9.72919841]
[1645896678547,1.51464689,2789.4,2789.3,9.72919841]
[1645896678748,1.51464689,2789.6,2789.3,9.72919841]
[1645896679009,1.51464689,2789.5,2789.3,9.72919841]
[1645896679206,1.51464689,2789.6,2789.3,9.72919841]
[1645896679406,1.51464689,2789.5,2789.3,9.72919841]
[1645896679606,1.51464689,2789.4,2789.3,9.72919841]
[1645896680210,0.00443554,2789.7,2789.5,2.62311177]
[1645896680409,1.51469564,2789.6,2789.5,2.62311177]
[1645896680610,1.51469564,2789.6,2789.5,3.92311177]
[1645896680819,0.00443547,2789.7,2789.5,3.92311177]
[1645896681015,1.51469564,2789.6,2789.5,3.92311177]
[1645896681817,0.00443561,2789.7,2789.5,3.92311177]
[1645896682018,1.51469564,2789.6,2789.5,3.92311177]
[1645896683457,0.67070639,2790.0,2789.5,3.92311177]
[1645896683759,2.1853754,2790.1,2789.8,1.26655567]
[1645896683960,1.61560058,2789.7,2789.5,3.92311177]
[1645896684165,1.51466901,2789.6,2789.5,3.92311177]
[1645896684763,1.51466901,2789.6,2789.5,6.49622354]
[1645896685362,1.51466901,2789.6,2789.5,7.8049126]
[1645896685561,1.51466901,2789.6,2789.5,6.49622354]
[1645896686801,1.51466901,2789.6,2789.5,7.91363918]
[1645896689201,1.51349538,2789.6,2789.5,7.91363918]
[1645896691046,1.51349538,2789.6,2789.5,6.49622354]
[1645896698646,2.18420177,2789.6,2789.5,6.49622354]
[1645896700052,1.51349538,2789.6,2789.5,6.49622354]
[1645896700448,2.19422996,2789.6,2789.5,6.49622354]
[1645896700650,2.19422996,2789.6,2789.5,5.19622354]
[1645896700854,5.01349538,2789.6,2789.5,5.19622354]
[1645896701049,5.9207557,2789.6,2789.5,5.19622354]
[1645896701249,5.01349538,2789.6,2789.5,5.19622354]
[1645896703098,1.51349538,2789.6,2789.5,5.19622354]
[1645896703300,5.01349538,2789.6,2789.5,5.19622354]
[1645896704000,1.51349538,2789.6,2789.5,3.58000301]
[1645896704200,5.01349538,2789.6,2789.5,2.57311177]
[1645896704401,1.51349538,2789.6,2789.5,3.58000301]
[1645896705257,5.01349538,2789.6,2789.5,3.58000301]
[1645896705858,5.91901938,2789.6,2789.5,3.58000301]
[1645896706060,5.01349538,2789.6,2789.5,3.58000301]
[1645896706457,5.91901178,2789.6,2789.5,3.58000301]
[1645896706865,1.51349538,2789.6,2789.5,3.58000301]
[1645896710213,1.51349538,2789.6,2789.5,3.5791417]
[1645896710606,1.51349538,2789.6,2789.5,1.00689124]
[1645896710808,2.41901178,2789.6,2789.5,1.00689124]
[1645896711007,5.01349538,2789.6,2789.5,3.5791417]
[1645896711207,1.51349538,2789.6,2789.5,3.5791417]
[1645896711507,2.41840031,2789.6,2789.5,3.5791417]
[1645896711713,1.51349538,2789.6,2789.5,3.5791417]
[1645896712115,2.19206369,2789.6,2789.5,3.5791417]
[1645896713171,1.51349538,2789.6,2789.5,3.5791417]
[1645896714167,2.19206369,2789.6,2789.5,3.5791417]
[1645896714768,1.51349538,2789.6,2789.5,3.5791417]
[1645896714972,2.19197683,2789.6,2789.5,3.5791417]
[1645896715168,1.51349538,2789.6,2789.5,3.5791417]
[1645896715570,2.19197683,2789.6,2789.5,3.5791417]
[1645896716599,1.51349538,2789.6,2789.5,3.5791417]
[1645896717202,2.19189812,2789.6,2789.5,3.5791417]
[1645896717603,1.51349538,2789.6,2789.5,3.5791417]
[1645896718105,2.1918513,2789.6,2789.5,3.5791417]
[1645896719206,1.51349538,2789.6,2789.5,3.5791417]
[1645896721760,2.1918513,2789.6,2789.5,3.5791417]
[1645896722460,2.1918802,2789.6,2789.5,3.5791417]
[1645896723060,2.0918802,2789.6,2789.5,3.5791417]
[1645896723460,1.41349538,2789.6,2789.5,3.5791417]
[1645896724118,1.41349538,2789.6,2789.5,1.96313414]
[1645896724319,1.41349538,2789.6,2789.3,7.1701]
[1645896724518,1.41349538,2789.6,2789.4,1.96313414]
[1645896729349,2.09185813,2789.6,2789.4,1.96313414]
[1645896729547,2.29867701,2789.7,2789.3,7.1701]
[1645896729750,2.29396333,2789.7,2789.3,7.1701]
[1645896729948,2.29867701,2789.7,2789.4,1.96313414]
[1645896730350,0.67836275,2789.6,2789.4,1.96313414]
[1645896730549,0.67836275,2789.6,2789.4,1.05678472]
[1645896732603,3.5,2789.5,2789.4,1.05678472]
[1645896732802,4.40490493,2789.5,2789.4,1.05678472]
[1645896733003,3.5,2789.5,2789.4,1.05678472]
[1645896733203,12.5,2789.4,2789.3,7.1701]
[1645896733405,16.0,2789.4,2789.3,7.1701]
[1645896733602,18.35360795,2789.4,2789.3,7.1701]
[1645896734403,17.0,2789.4,2789.3,7.1701]
[1645896735270,20.1381838,2789.4,2789.3,7.1701]
[1645896735456,18.78457585,2789.4,2789.3,7.1701]
[1645896735655,19.32717537,2789.4,2789.3,7.1701]
[1645896736257,20.68078332,2789.4,2789.3,7.1701]
[1645896737563,25.68078332,2789.4,2789.3,7.1701]
[1645896738369,24.32717537,2789.4,2789.3,7.1701]
[1645896738566,25.68078332,2789.4,2789.3,7.1701]
[1645896739003,24.32717537,2789.4,2789.3,7.1701]
[1645896739396,19.32717537,2789.4,2789.3,7.1701]
[1645896739996,25.68078332,2789.4,2789.3,7.1701]
[1645896740196,24.32717537,2789.4,2789.3,7.1701]
[1645896740401,25.68078332,2789.4,2789.3,7.1701]
[1645896740998,24.32717537,2789.4,2789.3,7.1701]
[1645896741401,19.32717537,2789.4,2789.3,7.1701]
[1645896741804,20.68078332,2789.4,2789.3,7.1701]
[1645896742002,19.32717537,2789.4,2789.3,7.1701]
[1645896742604,20.68078332,2789.4,2789.3,7.1701]
[1645896743056,20.41162344,2789.4,2789.3,7.1701]
[1645896743261,22.19619929,2789.4,2789.3,7.1701]
[1645896743757,27.19619929,2789.4,2789.3,7.1701]
[1645896744161,27.19619929,2789.4,2789.3,5.55366326]
[1645896745059,22.19619929,2789.4,2789.3,5.55366326]
[1645896747398,8.34259134,2789.4,2789.3,5.55366326]
[1645896747598,6.55801549,2789.4,2789.3,5.55366326]
[1645896748200,2.13083211,2789.0,2788.9,0.00502825]
[1645896748503,8.34346808,2789.0,2788.9,0.00502825]
[1645896749001,9.34346808,2789.0,2788.1,0.1434]
[1645896749200,0.67752542,2788.4,2788.2,0.01509451]
[1645896749407,2.47223542,2788.4,2788.2,0.01138829]
[1645896749600,5.01541597,2788.3,2788.2,0.01138829]
[1645896750002,1.51541597,2788.3,2788.2,0.01138829]
[1645896750256,2.1924353,2788.3,2787.9,0.00370622]
[1645896750458,2.1924353,2788.3,2788.1,0.0050319]
[1645896750863,2.1924353,2788.2,2788.1,0.0050319]
[1645896751161,2.1924353,2788.2,2787.7,0.47160453]
[1645896751162,6.0,2788.1,2787.7,0.47160453]
[1645896751362,6.0,2788.1,2787.7,0.4514739]
[1645896751363,1.51541597,2788.0,2787.7,0.4514739]
[1645896751661,1.51541597,2788.0,2787.6,0.01916495]
[1645896752068,1.51589585,2787.9,2787.6,0.01916495]
[1645896752262,1.51589585,2787.8,2787.6,0.01916495]
[1645896752461,1.51589585,2787.7,2787.6,0.01916495]
[1645896752760,1.51589585,2787.7,2787.5,0.1434]
[1645896752960,6.89746,2788.1,2787.5,0.1434]
[1645896752961,1.51589585,2787.6,2787.5,0.1434]
[1645896753362,6.89746,2788.1,2787.5,0.1434]
[1645896753363,1.51589585,2788.0,2787.5,0.1434]
[1645896753560,1.51589585,2787.9,2787.5,0.1434]
[1645896753762,1.51589585,2787.8,2787.5,0.1434]
[1645896753999,1.51589585,2787.7,2787.6,0.00284452]
[1645896754205,3.5,2787.7,2787.6,0.00284452]
[1645896754500,1.51589585,2787.7,2787.6,0.00284452]
[1645896754708,5.01589585,2787.7,2787.6,0.00284452]
[1645896754899,5.01589585,2787.7,2787.3,0.00370622]
[1645896755104,5.01589585,2787.7,2787.1,8.27369819]
[1645896755105,1.51589585,2787.6,2787.1,8.27369819]
[1645896755299,1.51589585,2787.6,2787.1,8.29383126]
[1645896756199,1.51589585,2787.6,2787.1,8.27369819]
[1645896756398,1.51589585,2787.6,2787.2,0.00284455]
[1645896756399,3.5,2787.5,2787.2,0.00284455]
[1645896756606,1.51589585,2787.4,2787.2,0.00284455]